Cogmind - Beta 16 @@@ ROGUE MODE // 2026.01.02 @ 16:03:18 Player: exo Result: Destroyed by BU-KVY(R) with Subdweller Shrapnel Launcher Performance ------------- Evolutions (0) 0 Regions Visited (2) 400 Robots Destroyed (16) 80 Value Destroyed (432) 432 Prototype IDs (0) 0 Alien Tech Used (0) 0 Bonus (0) 0 TOTAL SCORE: 912 Bonus ------- None Cogmind --------- Core Integrity 0/250 Matter 196/300 Energy 160/160 System Corruption 0% Temperature Cool (0) Movement Core (1500) Ox29 Location -10/Subcaves Parts ------- > --- POWER (1) -------- Light Nuclear Core > --- PROPULSION (2) --- (None) > --- UTILITY (2) ------ Huge Storage Unit > --- WEAPON (2) ------- Mace Mace > --- INVENTORY (25) --- Light Ion Engine Light Ion Engine High-capacity Storage Unit Light Armor Plating Particle Gun Particle Gun Particle Gun Particle Gun Scrap Shield Fragment (47) Scrap Shield Fragment (46) Peak State ------------ > --- POWER ------------ Light Nuclear Core > --- PROPULSION ------- Light Treads Light Treads > --- UTILITY ---------- Huge Storage Unit Propulsion Shielding > --- WEAPON ----------- Particle Gun Particle Gun > --- INVENTORY -------- Light Ion Engine Light Ion Engine High-capacity Storage Unit Light Armor Plating Particle Gun Particle Gun Mace Mace [Rating: 12] Favorites ----------- Power Light Ion Engine Engine Light Ion Engine Power Core Light Nuclear Core Propulsion Light Treads Treads Light Treads Utility Huge Storage Unit Storage Huge Storage Unit Protection Light Armor Plating Weapon Particle Gun Energy Gun Particle Gun Ballistic Gun Assault Rifle Impact Weapon Mace Build | -11 -10 -10 ------- Run | Yrd Mat Sub Slots Evolved . | . . . Power . | . . . Propulsion . | . . . Utility . | . . . Weapon . | . . . Parts Attached 19 | 6 13 . Power 4 | 1 3 . Engine 3 | 1 2 . Core 1 | . 1 . Reactor . | . . . Propulsion 4 | 2 2 . Treads 4 | 2 2 . Leg . | . . . Wheel . | . . . Hover . | . . . Flight . | . . . Utility 5 | 1 4 . Device . | . . . Storage 3 | 1 2 . Processor . | . . . Hackware . | . . . Protection 2 | . 2 . Artifact . | . . . Weapon 6 | 2 4 . Energy Gun 2 | . 2 . Energy Cannon . | . . . Ballistic Gun 2 | 2 . . Ballistic Cannon . | . . . Launcher . | . . . Special Weapon . | . . . Impact Weapon 2 | . 2 . Slashing Weapon . | . . . Piercing Weapon . | . . . Special Melee Weapon . | . . . Unidentified Prototypes . | . . . Parts Lost 3 | . . 3 Power . | . . . Propulsion 2 | . . 2 Utility 1 | . . 1 Weapon . | . . . Highest Loss Streak 3 | . . 3 To Critical Strikes 1 | . . 1 Average Backups 3 | 1 3 8 Power . | . . 2 Propulsion . | . . . Utility 1 | . 1 2 Weapon 1 | . 1 4 Tool/Special . | . . . Unused Backups 2 | . . 2 Power . | . . . Propulsion . | . . . Utility . | . . . Weapon 2 | . . 2 Tool/Special . | . . . Average Slot Usage (%) 94 | . 95 85 Engine 11 | . 12 . Core 2 | . 1 14 Treads 24 | . 25 18 Storage 14 | . 14 14 Protection 12 | . 12 9 Energy Gun 10 | . 9 16 Ballistic Gun 14 | . 15 . Impact Weapon 3 | . 2 12 Peak Build Rating 12 | 6 12 12 Average Rating 8 | 3 7 10 On Entrance 6 | . 6 12 Avg Prop Armor Cover (%) . | . . . Naked Turns . | . . . Heaviest Build 92 | 11 92 92 Greatest Support 40 | 40 40 40 Greatest Overweight (x) 29 | 2 29 29 Average Overweight (x) 2 | . 2 5 Largest Inventory Capacity 25 | 8 25 25 Average Capacity 23 | 7 23 25 Most Carried 10 | 5 8 10 Average Carried 3 | 2 3 8 Final Capacity 25 | 8 25 25 Final Carried 10 | 1 8 10 Class Distribution -------------------- 100% | Mutant Dominant Class ---------------- Mutant | -10/Materials Mutant | -10/Subcaves Resources | -11 -10 -10 ----------- Run | Yrd Mat Sub Matter Collected 433 | 190 243 . Remotely . | . . . Salvage Created 463 | . 440 23 Parts 25 | . 24 1 Haulers Intercepted . | . . . Recyclers Shooed 1 | . 1 . Parts Field Recycled . | . . . Retrieved Matter . | . . . Parts Self-Destructed . | . . . Prevented . | . . . Parts Restored . | . . . Kills | -11 -10 -10 ------- Run | Yrd Mat Sub Combat Hostiles Destroyed 13 | . 12 1 Melee 1 | . . 1 Guns 12 | . 12 . Classes Destroyed 5 | . 4 1 Operator 1 | . 1 . Watcher 2 | . 2 . Swarmer 5 | . 5 . Grunt 7 | . 7 . Subdweller 1 | . . 1 Best Kill Streak 3 | . 3 1 Combat Bots Only 3 | . 3 1 Max Kills in Single Turn 1 | . 1 1 Gunslinging . | . . . Exploded . | . . . Melee 1 | . . 1 Uniques/NPCs Destroyed . | . . . Combat | -11 -10 -10 -------- Run | Yrd Mat Sub Hostile Shots Fired 122 | . 102 20 Missed 42 | . 39 3 Hits 80 | . 63 17 Projectile 80 | . 63 17 AOE 3 | . . 3 Critical Strikes 2 | . . 2 Actively Blocked 1 | . . 1 Damage Taken 1130 | . 687 443 Core 265 | . 75 190 Absorbed by Shields . | . . . Redirected to Shielding 53 | . 8 45 Core Remaining (%) 100 | 100 . . Volleys Fired 46 | . 43 3 Largest 2 | . 2 2 Hottest 130 | . 130 130 Shots Fired 91 | . 86 5 Gun 91 | . 86 5 Cannon . | . . . Launcher . | . . . Special . | . . . Kinetic 56 | . 56 . Thermal 35 | . 30 5 Explosive . | . . . Electromagnetic . | . . . Robot Hit Streak 7 | . 7 6 Robot Miss Streak 4 | . 4 . Penetration Max . | . . . Secondary Targets 2 | . 2 . Max Gunslinging Chain 1 | . 1 . Shots Hit Robots 65 | . 51 14 Core Hits 27 | . 25 2 Critical Kills . | . . . Critical Parts Destroyed 1 | . 1 . Critical Strikes 1 | . 1 . Smash 1 | . 1 . Melee Attacks 16 | . 5 11 Impact 16 | . 5 11 Slashing . | . . . Piercing . | . . . Sneak Attacks . | . . . Combat Hostiles . | . . . Follow-up Attacks 3 | . 1 2 Damage Inflicted 1088 | . 690 398 Guns 710 | . 629 81 Cannons . | . . . Explosions . | . . . Melee 378 | . 61 317 Ramming . | . . . Kinetic 392 | . 392 . Thermal 318 | . 237 81 Explosive . | . . . Electromagnetic . | . . . Impact 378 | . 61 317 Slashing . | . . . Piercing . | . . . Highest Corruption . | . . . Average Corruption . | . . . Corruption Purged . | . . . Corruption Blocked . | . . . Overload Shots . | . . . Overflow Damage 71 | . 29 42 Projectiles . | . . . Explosions . | . . . Melee 71 | . 29 42 Knockbacks 1 | . 1 . Impact 1 | . 1 . Kinetic . | . . . Secondary . | . . . Self-Inflicted Damage . | . . . Shots . | . . . Rammed . | . . . Targets Rammed . | . . . Kicked . | . . . Crushed . | . . . Highest Temperature 546 | . 546 30 Average Temperature 133 | . 138 17 Received Heat Transfer 276 | . 276 . Effects 3 | . 3 . Shutdowns 1 | . 1 . Interference 2 | . 2 . Siege Activations . | . . . Martial Activations . | . . . Shielding Activations . | . . . Robots Disrupted . | . . . Combat Hostiles . | . . . Robots Corrupted . | . . . Combat Hostiles . | . . . Parts Fried . | . . . Impact Corruptions 5 | . 3 2 Robots Melted . | . . . Combat Hostiles . | . . . Parts Melted . | . . . Heat Transferred 740 | . 555 185 Parts Sabotaged . | . . . Parts Stolen . | . . . Parts Stripped . | . . . Power Chain Reactions . | . . . Alert | -11 -10 -10 ------- Run | Yrd Mat Sub Maximum Alert Level . | . . . Low Security (%) 100 | 100 100 . Level 1 . | . . . Level 2 . | . . . Level 3 . | . . . Level 4 . | . . . Level 5 . | . . . High Security . | . . . Max Security . | . . . Peak Influence 145 | . 145 . Initial . | . . . Average 28 | . 28 . Influence Increases 388 | . 388 . Destroy 0b10 Robot/C 240 | . 240 . Destroy 0b10 Robot/NC 15 | . 15 . Destroy Leader 64 | . 64 . Successful Hack 8 | . 8 . Disable Machine 45 | . 45 . Destroy Structure 1 | . 1 . Lose Combat Pursuer 15 | . 15 . Influence Decreases 388 | . 279 109 Entered New Map 53 | . . 53 Time Decay 335 | . 279 56 Squads Dispatched 2 | . 2 . Investigation 1 | . 1 . Extermination . | . . . Reinforcement 1 | . 1 . Assault . | . . . Garrison . | . . . Intercept . | . . . Searches Triggered . | . . . Construction Impeded . | . . . Haulers Reinforced . | . . . Active Scanning Responses . | . . . Cargo Convoy Interrupts . | . . . Stealth | -11 -10 -10 --------- Run | Yrd Mat Sub Distress Signals 2 | . 2 . Communications Jammed . | . . . Distress Signals . | . . . Times Spotted 25 | . 23 2 Peak Tracking Total 5 | . 5 1 Tactical Retreats 1 | . 1 . Traps | -11 -10 -10 ------- Run | Yrd Mat Sub Traps Triggered 2 | . 2 . Indirectly . | . . . Trap Hack Attempts . | . . . Triggered . | . . . Disarmed . | . . . Reprogrammed . | . . . Reused . | . . . Traps Extracted . | . . . Installed . | . . . Triggered . | . . . Machines | -11 -10 -10 ---------- Run | Yrd Mat Sub Machines Disabled 3 | . 3 . Max in Single Turn 1 | . 1 . Machines Repaired . | . . . Machines Dismantled . | . . . Machines Sabotaged . | . . . Overloaded Fab Kills . | . . . Hacking | -11 -10 -10 --------- Run | Yrd Mat Sub Machines Accessed 1 | . 1 . Terminals 1 | . 1 . Fabricators . | . . . Repair Stations . | . . . Recycling Units . | . . . Scanalyzers . | . . . Garrison Access . | . . . Total Hacks 3 | . 3 . Successful 2 | . 2 . Failed 1 | . 1 . Catastrophic . | . . . Database Lockouts . | . . . Manual . | . . . Terminals 3 | . 3 . Fabricators . | . . . Repair Stations . | . . . Recycling Units . | . . . Scanalyzers . | . . . Garrison Access . | . . . Terminal Hacks 2 | . 2 . Level Access Points 1 | . 1 . Zone Layout 1 | . 1 . Fabricator Hacks . | . . . Repair Station Hacks . | . . . Recycling Unit Hacks . | . . . Scanalyzer . | . . . Garrison Access Hacks . | . . . Unauthorized Hacks . | . . . Terminals . | . . . Fabricators . | . . . Repair Stations . | . . . Recycling Units . | . . . Scanalyzers . | . . . Garrison Access . | . . . Data Cores Recovered . | . . . Used . | . . . Hacking Detections 1 | . 1 . Full Trace Events . | . . . Feedback Events . | . . . Feedback Blocked . | . . . Robot Schematics Acquired . | . . . Robots Built . | . . . Authchips . | . . . Time . | . . . Total Robot Build Rating . | . . . Part Schematics Acquired . | . . . Parts Built . | . . . Authchips . | . . . Time . | . . . Total Part Build Rating . | . . . Part Studies Acquired . | . . . Parts Repaired . | . . . Time . | . . . Parts Recycled . | . . . Recycled Matter . | . . . Retrieved Matter . | . . . Retrieved Components . | . . . Parts Scanalyzed . | . . . Part Schematics Acquired . | . . . Parts Damaged . | . . . Bothacking | -11 -10 -10 ------------ Run | Yrd Mat Sub Used RIF Installer . | . . . Robots Hacked . | . . . Non-combat . | . . . Combat . | . . . Robot Hacks Applied . | . . . Relay Couplers Released . | . . . Fabnet Peak Effective % . | . . . Robots Rewired . | . . . Allies Hacked . | . . . Hacks Repelled . | . . . Allies | -11 -10 -10 -------- Run | Yrd Mat Sub Total Allies . | . . . Largest Group . | . . . Highest-Rated Group . | . . . Highest-Rated Ally . | . . . Total Orders . | . . . Ally Attacks . | . . . Total Damage . | . . . Kills . | . . . Allies Corrupted . | . . . Allies Melted . | . . . Intel | -11 -10 -10 ------- Run | Yrd Mat Sub Active Infowar (turns) . | . . . Robot Analysis Total . | . . . Derelict Logs Recovered . | . . . Drone Launches . | . . . Drone Recoveries . | . . . Exploration | -11 -10 -10 ------------- Run | Yrd Mat Sub Turns Passed 2084 | 43 1844 197 Spaces Moved 587 | 27 525 35 Core 22 | 13 5 4 Treads 565 | 14 520 31 Legs . | . . . Wheels . | . . . Hover . | . . . Flight . | . . . Fastest Speed 50 | 50 160 320 Average Speed 315 | 118 316 454 Slowest Speed 1500 | 160 1500 1500 Overloaded Moves . | . . . Propulsion Burnouts . | . . . Robots Hopped . | . . . Potential Cave-ins . | . . . Cave-ins Triggered . | . . . Exploration Rate (%) 29 | 3 82 4 Regions Visited 2 Branch Regions 1 Pre-discovered Areas . | . . . Known Exits Taken . | . . . Unknown Exits Taken 2 | 1 1 . Scrap Searched . | . . . Spaces Dug . | . . . Terrain Destroyed . | . . . Melee . | . . . Projectile . | . . . AOE . | . . . Terrain Rammed . | . . . Walls Destroyed . | . . . Machines Disabled . | . . . Actions | -11 -10 -10 --------- Run | Yrd Mat Sub Total 713 | 37 624 52 Wait 15 | . 13 2 Move 585 | 26 524 35 Hop . | . . . Pick Up 24 | 5 17 2 Fast Attach 2 | 2 . . Attach 12 | 4 8 . Detach 1 | . 1 . Swap 10 | . 8 2 Drop 7 | . 7 . Fire 46 | . 43 3 Melee 11 | . 3 8 Ram . | . . . Kick . | . . . Crush . | . . . Escape Stasis . | . . . Rewire . | . . . Trap . | . . . Miscellaneous . | . . . Route ------- -11/Scrapyard -10/Materials (discovered 5 exits: *Mat x3 / [*Min] / [*Sub]) -10/Subcaves (discovered 1 exit: [*Mat]) History --------- Turn | Location | Event 9 | -11/Scrapyard | Discovered new exit (range 16) 44 | -11/Scrapyard | Entered Materials 264 | -10/Materials | Discovered new exit (range 12) 310 | -10/Materials | Build established: Mutant 667 | -10/Materials | Discovered new exit (range 10) 884 | -10/Materials | Discovered new exit (range 13) 1436 | -10/Materials | Discovered new exit (range 12) 1618 | -10/Materials | Identified exit to Materials 1888 | -10/Materials | Entered Subcaves 1898 | -10/Subcaves | Discovered new exit (range 6) 2010 | -10/Subcaves | Core integrity fell below 50% 2046 | -10/Subcaves | Lost 3 parts (2n1u) 2084 | -10/Subcaves | Core integrity fell below 20% 2085 | -10/Subcaves | Destroyed by BU-KVY(R) with Subdweller Shrapnel Launcher Last Messages --------------- GOAL=ESCAPE EXIT=FOUND Mace follow-up attack on JL-2XK(R). Destroyed Sub. Monowheel. JL-2XK(R) system corrupted by crushing effect. Propulsion Shielding destroyed. Lgt. Treads destroyed. Critical hit (Destroy). Lgt. Treads destroyed. Mace follow-up attack on JL-2XK(R). Destroyed Sub. Power Source. JL-2XK(R) system corrupted by crushing effect. JL-2XK(R) destroyed. Subatomizers dissect the Corrupted Sub. Optics. Acquired Scrap Shield Fragment. Subatomizers dissect the Corrupted Sub. Optics. Acquired Scrap Shield Fragment. Subatomizers dissect the Corrupted Sub. Optics. Map ----- +----------------------------------------------------+ | ?????????????????????????????????????????????????? | | ?????????????????????????????????????????????????? | | ?????????????????????????????????????????????????? | | ?????????????????????????????????????????????????? | | ?????????????????????????????????????????????????? | | ?????????????????????????????????????????????????? | | ?????????????????????????????????????????????????? | | ?????????????????????????????????????????????????? | | ?????????????????????????????????????????????????? | | ?????????????????????????????????????????????????? | | ?????????????????????????????????????????????????? | | ?????????????????????????????????????????????????? | | ?????????????????????????????????????????????????? | | ?????????????????????????????????????????????????? | | ?????????????????????###?????????????????????????? | | ????????????????????? # ?????????????????????????? | | ?????????????????????? ?????????????????????????? | | ?????????????????????? ?????????????????????????? | | ?????????????????????? ###??????????????????????? | | ??????????????????????? #????# ???????????????? | | ??????????????????????? ##??? ??????????????? | | ???????????????????????# #??# ###????????????? | | ??????????????????????##;R ##? ????????????? | | ??????????????????????# ; ;## ????????????? | | ??????????????????????# ; ;# #?????????????? | | ??????????????????????# @ ; #????????????????? | | ??????????????????????# ##???????????????? | | ??????????????????????# #???????????????? | | ????????????????????### #???????????????? | | ??????????????????### < ; #???????????????? | | ??????????????????# ; #????#??????????? | | ?????????????????## #;;; ; #?? ##?????????? | | ?????????????????# ### ;; #? ##????????? | | ?????????????????## ### # #????????? | | ??????????????????## #?## #????????? | | ??????????????????# ##??# ##????????? | | ??????????????????# #?#"""" #?????????? | | ??????????????????# ##?#"""" #?????????? | | ??????????????????##""#?##""" #?????????? | | ???????????????????""##??#### ## #????????? | | ??????????????????" "??????####? ???????? | | ?????????????????" # "???????????# #??????? | | ?????????????????"####????????????# #??????? | | ?????????????????"????????????????? ?????? | | ???????????????????????????????????? ?????? | | ???????????????????????????????????? "" ??????? | | ?????????????????????????????????????""## "??????? | | ?????????????????????????????????????#???????????? | | ?????????????????????????????????????????????????? | | ?????????????????????????????????????????????????? | +----------------------------------------------------+ Best States ------------- Heat Dissipation 25 Energy Generation 14 Energy Capacity 160 Matter Stores 260 Matter Capacity 300 Sight Range 16 Terrain Scan Density 10 Armor Coverage 150 Propulsion Shielding 33 Evasion (%) 50 Recoil Reduction 2 Item Schematics ----------------- None Robot Schematics ------------------ None Fabricated ------------ Nothing Repaired ---------- Nothing Studied --------- None Alien Tech Used ----------------- None Achievements -------------- None Challenges ------------ None Game ------ Seed ScrapoidSuperquantumFilter Manual? 0 Play Time 00:12:14 Cumulative 9.1 hours Start 2026.01.02 @ 15:52:12 End 2026.01.02 @ 16:03:18 Sessions 1 Manual Loads 0 Difficulty Rogue Special Mode None Game No. 33 Rogue 33 Adventurer 0 Explorer 0 Win Type - Total 0 Types 0/0/0/0/0/0/0/0/0/0 Lore% 7 Gallery% 11 Achievement% 9 Wizard Run 0 Options --------- Layout 1 ASCII 0 Keyboard 0 Movement Mouse Keybinds 0 Fullscreen 1 Font 24/Smallcaps Map View 50x35 Zoom Use 0% Tactical HUD 0 Map Filters NONE Filters NONE Steam 1 RUN: dfc3e444-902a-458e-a2bf-e2ac27800c70